fUST/lending_fUST_20251213
["ID","MTS","AMOUNT","RATE_DAILY","PERIOD"]
[398409848,1765617102639,-1211.46,0.00029315,3]
[398409849,1765617102650,-500.0,0.00029315,3]
[398409850,1765617102661,-500.0,0.00029315,3]
[398409851,1765617102672,-788.62,0.00029315,3]
[398409852,1765617102685,-541.28,0.00029315,3]
[398409853,1765617102695,-1484.03,0.00029315,3]
[398409854,1765617102706,-1576.26,0.00029315,3]
[398409855,1765617102719,-538.43,0.00029315,3]
[398409856,1765617102730,-500.0,0.00029315,3]
[398409857,1765617102740,-500.0,0.00029315,3]
[398409858,1765617102750,-631.67756101,0.00029315,3]
[398409859,1765617102760,-1753.96,0.00029315,3]
[398409860,1765617102771,-1893.62,0.00029315,3]
[398409861,1765617102782,-1559.0,0.00029315,3]
[398409862,1765617102793,-1715.03,0.00029315,3]
[398409863,1765617102804,-1728.44,0.00029315,3]
[398409864,1765617102815,-500.0,0.00029315,3]
[398409865,1765617102826,-500.0,0.00029315,3]
[398409866,1765617102836,-500.0,0.00029315,3]
[398409867,1765617102847,-500.0,0.00029315,3]
[398409868,1765617102858,-500.0,0.00029315,3]
[398409869,1765617102869,-500.0,0.00029315,3]
[398409870,1765617102880,-500.0,0.00029315,3]
[398409871,1765617102890,-2558.19,0.00029315,3]
[398409872,1765617102901,-500.0,0.00029315,3]
[398409873,1765617102912,-500.0,0.00029315,3]
[398409874,1765617102924,-2327.61,0.00029315,3]
[398409875,1765617102935,-656.92,0.00029315,3]
[398409876,1765617103107,-500.0,0.00029315,3]
[398409877,1765617103117,-1829.66,0.00029315,3]
[398409878,1765617103127,-500.0,0.00029315,3]
[398409879,1765617103136,-500.0,0.00029315,3]
[398409880,1765617103147,-500.0,0.00029315,3]
[398409881,1765617103157,-754.81,0.00029315,3]
[398409882,1765617103167,-500.0,0.00029315,3]
[398409883,1765617103176,-500.0,0.00029315,3]
[398409884,1765617103185,-500.0,0.00029315,3]
[398409885,1765617103195,-1088.51,0.00029315,3]
[398409886,1765617103204,-500.0,0.00029315,3]
[398409887,1765617103213,-500.0,0.00029315,3]
[398409888,1765617103224,-2152.22,0.00029315,3]
[398409889,1765617103234,-1575.55,0.00029315,3]
[398409890,1765617103243,-1036.88,0.00029315,3]
[398409891,1765617103252,-500.0,0.00029315,3]
[398409892,1765617103262,-1210.75,0.00029315,3]
[398409893,1765617103271,-500.0,0.00029315,3]
[398409894,1765617103280,-500.0,0.00029315,3]
[398409895,1765617103289,-500.0,0.00029315,3]
[398409896,1765617103298,-500.0,0.00029315,3]
[398409897,1765617103307,-500.0,0.00029315,3]
[398409898,1765617103317,-500.0,0.00029315,3]
[398409899,1765617103326,-500.0,0.00029315,3]
[398409900,1765617103336,-500.0,0.00029315,3]
[398409901,1765617103346,-1371.34,0.00029315,3]
[398409902,1765617103358,-500.0,0.00029315,3]
[398409903,1765617103369,-1544.08,0.00029315,3]
[398409904,1765617103380,-500.0,0.00029315,3]
[398409905,1765617103391,-500.0,0.00029315,3]
[398409906,1765617103402,-500.0,0.00029315,3]
[398409907,1765617103415,-964.54,0.00029315,3]
[398409908,1765617103426,-500.0,0.00029315,3]
[398409909,1765617103436,-2211.52,0.00029315,3]
[398409910,1765617103447,-715.72,0.00029315,3]
[398409911,1765617103457,-500.0,0.00029315,3]
[398409912,1765617103467,-644.23,0.00029315,3]
[398409913,1765617103477,-500.0,0.00029315,3]
[398409914,1765617103488,-1282.87,0.00029315,3]
[398409915,1765617103498,-562.72,0.00029315,3]
[398409916,1765617103508,-749.99,0.00029315,3]
[398409917,1765617103520,-1878.73,0.00029315,3]
[398409918,1765617103530,-214.74102295,0.00029315,3]
[398409919,1765617103540,-911.18,0.00029315,3]
[398409920,1765617103551,-1507.87,0.00029315,3]
[398409921,1765617103560,-500.0,0.00029315,3]
[398409922,1765617103570,-690.11,0.00029315,3]
[398409923,1765617103581,-927.44,0.00029315,3]
[398409924,1765617103591,-500.0,0.00029315,3]
[398409925,1765617103601,-1770.22,0.00029315,3]
[398409926,1765617103611,-750.26,0.00029315,3]
[398409927,1765617103620,-500.0,0.00029315,3]
[398409928,1765617103630,-500.0,0.00029315,3]
[398409929,1765617103642,-787.25,0.00029315,3]
[398409930,1765617103652,-863.65,0.00029315,3]
[398409931,1765617103664,-500.0,0.00029315,3]
[398409932,1765617103674,-500.0,0.00029315,3]
[398409933,1765617103685,-1287.94,0.00029315,3]
[398409934,1765617103695,-500.0,0.00029315,3]
[398409935,1765617103705,-2003.21,0.00029315,3]
[398409936,1765617103714,-500.0,0.00029315,3]
[398409937,1765617103725,-500.0,0.00029315,3]
[398409938,1765617103734,-757.47,0.00029315,3]
[398409939,1765617103744,-1230.98,0.00029315,3]
[398409940,1765617103753,-500.0,0.00029315,3]
[398409941,1765617103763,-742.57,0.00029315,3]
[398409942,1765617103772,-500.0,0.00029315,3]
[398409943,1765617103782,-1040.17,0.00029315,3]
[398409944,1765617103791,-1961.04,0.00029315,3]
[398409945,1765617103801,-500.0,0.00029315,3]
[398409946,1765617103809,-1227.64,0.00029315,3]
[398409947,1765617103819,-247.49534616,0.00029315,3]
[398409948,1765617103828,-804.14,0.00029315,3]
[398409949,1765617103838,-500.0,0.00029315,3]
[398409950,1765617103847,-1602.27,0.00029315,3]
[398409951,1765617103857,-2358.14,0.00029315,3]
[398409952,1765617103867,-500.0,0.00029315,3]
[398409953,1765617103878,-500.0,0.00029315,3]
[398409954,1765617103888,-593.85117627,0.00029315,3]
[398409955,1765617103899,-500.0,0.00029315,3]
[398409956,1765617103909,-758.05,0.00029315,3]
[398409957,1765617103918,-2188.95,0.00029315,3]
[398409958,1765617103927,-500.0,0.00029315,3]
[398409959,1765617103936,-500.0,0.00029315,3]
[398409960,1765617103946,-1467.28,0.00029315,3]
[398409961,1765617103956,-643.24,0.00029315,3]
[398409962,1765617103966,-1893.58,0.00029315,3]
[398409963,1765617103976,-500.0,0.00029315,3]
[398409964,1765617103985,-2044.9,0.00029315,3]
[398409965,1765617103994,-187.42802349,0.00029315,3]
[398409966,1765617104005,-500.0,0.00029315,3]
[398409967,1765617104015,-882.53,0.00029315,3]
[398409968,1765617104025,-797.56,0.00029315,3]
[398409969,1765617104034,-500.0,0.00029315,3]
[398409970,1765617104044,-2394.02,0.00029315,3]
[398409971,1765617104054,-546.44292838,0.00029315,3]
[398409972,1765617104064,-2469.26,0.00029315,3]
[398409973,1765617104073,-2460.35,0.00029315,3]
[398409974,1765617104082,-500.0,0.00029315,3]
[398409975,1765617104091,-621.99,0.00029315,3]
[398409976,1765617104103,-725.09,0.00029315,3]
[398409977,1765617104113,-500.0,0.00029315,3]
[398409978,1765617104123,-500.0,0.00029315,3]
[398409979,1765617104132,-500.0,0.00029315,3]
[398409980,1765617104142,-500.0,0.00029315,3]
[398409981,1765617104151,-1840.29,0.00029315,3]
[398409982,1765617104161,-468.51455802,0.00029315,3]
[398409983,1765617104171,-2395.32,0.00029315,3]
[398409984,1765617104179,-539.27,0.00029315,3]
[398409985,1765617104191,-1165.82,0.00029315,3]
[398409986,1765617104203,-1618.61,0.00029315,3]
[398409987,1765617104212,-2371.07,0.00029315,3]
[398409988,1765617104223,-500.0,0.00029315,3]
[398409989,1765617104234,-1656.77,0.00029315,3]
[398409990,1765617104245,-2139.92,0.00029315,3]
[398409991,1765617104255,-2033.6,0.00029315,3]
[398409992,1765617104264,-1956.59,0.00029315,3]
[398409993,1765617104273,-1222.88,0.00029315,3]
[398409994,1765617104282,-2211.14,0.00029315,3]
[398409995,1765617104292,-1292.66,0.00029315,3]
[398409996,1765617104301,-1054.22,0.00029315,3]
[398409997,1765617104311,-500.0,0.00029315,3]
[398409998,1765617104320,-2063.19,0.00029315,3]
[398409999,1765617104330,-546.02,0.00029315,3]
[398410000,1765617104339,-1532.63,0.00029315,3]
[398410001,1765617104348,-2352.93,0.00029315,3]
[398410002,1765617104357,-500.0,0.00029315,3]
[398410003,1765617104367,-611.79684794,0.00029315,3]
[398410004,1765617104377,-870.12,0.00029315,2]
[398410005,1765617104388,-500.0,0.00029315,3]
[398410006,1765617104398,-576.15,0.00029315,3]
[398410007,1765617104408,-500.0,0.00029315,3]
[398410008,1765617104418,-500.0,0.00029315,3]
[398410009,1765617104428,-2186.76,0.00029315,3]
[398410010,1765617104438,-500.0,0.00029315,3]
[398410011,1765617104449,-1646.45,0.00029315,3]
[398410012,1765617104458,-500.0,0.00029315,3]
[398410013,1765617104469,-2156.34,0.00029315,3]
[398410014,1765617104478,-1000.0,0.00029315,2]
[398410015,1765617104487,-500.0,0.00029315,3]
[398410016,1765617104497,-500.0,0.00029315,3]
[398410017,1765617104507,-500.0,0.00029315,3]
[398410018,1765617104516,-316.72409029,0.00029315,3]
[398410019,1765617104526,-2095.52,0.00029315,3]
[398410020,1765617104536,-2472.36,0.00029315,3]
[398410021,1765617104545,-504.3,0.00029315,3]
[398410022,1765617104555,-1669.5,0.00029315,3]
[398410023,1765617104565,-1173.99,0.00029315,3]
[398410024,1765617104574,-500.0,0.00029315,3]
[398410025,1765617104584,-8313.59,0.00029315,3]
[398410026,1765617104593,-2189.26,0.00029315,3]
[398410027,1765617104603,-500.0,0.00029315,3]
[398410028,1765617104613,-756.99,0.00029315,3]
[398410029,1765617104623,-500.0,0.00029315,3]
[398410030,1765617104635,-341.33,0.00029315,3]
[398410031,1765617104644,-501.17153161,0.00029315,3]
[398410032,1765617104653,-2196.27,0.00029315,3]
[398410033,1765617104662,-500.0,0.00029315,3]
[398410034,1765617104672,-2077.28,0.00029315,3]
[398410035,1765617104683,-500.0,0.00029315,3]
[398410036,1765617104692,-500.0,0.00029315,3]
[398410037,1765617104702,-2178.91,0.00029315,3]
[398410038,1765617104713,-1039.54,0.00029315,3]
[398410039,1765617104722,-500.0,0.00029362,3]
[398410040,1765617104731,-500.0,0.00029362,3]
[398410041,1765617104740,-500.0,0.00029362,3]
[398410042,1765617104749,-500.0,0.00029362,3]
[398410043,1765617104759,-500.0,0.00029362,3]
[398410044,1765617104768,-909.28,0.00029368,3]
[398410045,1765617104777,-250.0,0.000294,10]
[398410046,1765617104786,-250.0,0.000295,10]
[398410047,1765617104797,-804.94,0.00029589,3]
[398410048,1765617104808,-185.2077369,0.00029589,3]
[398410049,1765617104818,-500.0,0.00029589,3]
[398410050,1765617104828,-1145.8,0.00029589,3]
[398410051,1765617104838,-163.457904,0.00029589,3]
[398410052,1765617104847,-897.33,0.00029589,3]
[398410053,1765617104857,-500.0,0.00029589,3]
[398410054,1765617104867,-500.0,0.00029589,3]
[398410055,1765617104876,-1068.39,0.00029589,3]
[398410056,1765617104886,-1993.075405,0.00029589,3]
[398410057,1765617104895,-500.0,0.00029589,3]
[398410058,1765617104904,-500.0,0.00029589,3]
[398410059,1765617104913,-248.3538976,0.00029589,3]
[398410060,1765617104923,-645.92,0.00029589,3]
[398410061,1765617104932,-553.99,0.00029589,3]
[398410062,1765617104942,-500.0,0.00029589,3]
[398410063,1765617104953,-500.0,0.00029589,3]
[398410064,1765617104963,-631.44596357,0.00029589,3]
[398410065,1765617104974,-500.0,0.00029589,3]
[398410066,1765617104983,-500.0,0.00029589,3]
[398410067,1765617104993,-500.0,0.00029589,3]
[398410068,1765617105002,-660.68,0.00029589,3]
[398410069,1765617105014,-856.0,0.00029589,3]
[398410070,1765617105024,-500.0,0.00029589,3]
[398410071,1765617105033,-500.0,0.00029589,3]
[398410072,1765617105042,-790.78,0.00029589,3]
[398410073,1765617105054,-500.0,0.00029589,3]
[398410074,1765617105063,-512.89,0.00029589,3]
[398410075,1765617105074,-500.0,0.00029589,3]
[398410076,1765617105084,-500.0,0.00029589,3]
[398410077,1765617105097,-500.0,0.00029589,3]
[398410078,1765617105108,-639.5,0.00029589,3]
[398410079,1765617105118,-500.0,0.00029589,3]
[398410080,1765617105127,-500.0,0.00029589,3]
[398410081,1765617105137,-3077.68,0.00029589,2]
[398410082,1765617105147,-500.0,0.00029589,3]
[398410083,1765617105156,-593.39,0.00029589,3]
[398410084,1765617105168,-2235.67,0.00029589,3]
[398410085,1765617105177,-1390.25,0.00029589,3]
[398410086,1765617105187,-500.0,0.00029589,3]
[398410087,1765617105196,-500.0,0.00029589,3]
[398410088,1765617105206,-785.9,0.00029589,3]
[398410089,1765617105218,-500.0,0.00029589,3]
[398410090,1765617105228,-831.81,0.00029589,3]
[398410091,1765617105238,-1408.37,0.00029589,3]
[398410092,1765617105249,-1689.79,0.00029589,3]
[398410093,1765617105259,-500.0,0.00029589,3]
[398410094,1765617105268,-500.0,0.00029589,3]
[398410095,1765617105278,-500.0,0.00029589,3]
[398410096,1765617105287,-2326.68,0.00029589,3]
[398410097,1765617105296,-824.67,0.00029589,3]
[398410098,1765617105305,-1057.47,0.00029589,3]
[398410099,1765617105314,-500.0,0.00029589,3]
[398410100,1765617105325,-500.0,0.00029589,3]
[398410101,1765617105335,-500.0,0.00029589,3]
[398410102,1765617105343,-500.0,0.00029589,3]
[398410103,1765617105353,-1473.21,0.00029589,3]
[398410104,1765617105362,-500.0,0.00029589,3]
[398410105,1765617105371,-500.0,0.00029589,3]
[398410106,1765617105381,-500.0,0.00029589,3]
[398410107,1765617105391,-500.0,0.00029589,3]
[398410108,1765617105402,-500.0,0.00029589,3]
[398410109,1765617105412,-500.0,0.00029589,3]
[398410110,1765617105424,-846.23,0.00029589,3]
[398410111,1765617105434,-292.3405652,0.00029589,3]
[398410112,1765617105443,-583.61,0.00029589,3]
[398410113,1765617105452,-626.59,0.00029589,3]
[398410114,1765617105462,-502.24499403,0.00029589,3]
[398410115,1765617105474,-904.94,0.00029589,3]
[398410116,1765617105484,-500.0,0.00029589,3]
[398410117,1765617105494,-500.0,0.00029589,3]
[398410118,1765617105503,-500.0,0.00029589,3]
[398410119,1765617105512,-500.0,0.00029589,3]
[398410120,1765617105521,-798.1,0.00029589,3]
[398410121,1765617105530,-500.0,0.00029589,3]
[398410122,1765617105539,-1087.52,0.00029589,3]
[398410123,1765617105549,-500.0,0.00029589,3]
[398410124,1765617105558,-500.0,0.00029589,3]
[398410125,1765617105567,-2523.4,0.00029589,3]
[398410126,1765617105576,-1478.52,0.00029589,3]
[398410127,1765617105586,-726.62,0.00029589,3]
[398410128,1765617105595,-500.0,0.00029589,3]
[398410129,1765617105604,-789.39,0.00029589,3]
[398410130,1765617105614,-357.81243744,0.00029589,3]
[398410131,1765617105624,-577.02,0.00029589,3]
[398410132,1765617105634,-1260.15,0.00029589,3]
[398410133,1765617105643,-707.76,0.00029589,3]
[398410134,1765617105653,-500.0,0.00029589,3]
[398410135,1765617105662,-123.74316078,0.00029589,3]
[398410136,1765617106230,-376.25683922,0.00029589,3]
[398410137,1765617106240,-500.0,0.00029589,3]
[398410138,1765617106250,-857.63,0.00029589,3]
[398410139,1765617106259,-43.10762898,0.00029589,3]
[398410140,1765617106270,-456.89237102,0.00029589,3]
[398410141,1765617106280,-1622.32,0.00029589,3]
[398410142,1765617106289,-500.0,0.00029589,3]
[398410143,1765617106299,-500.0,0.00029589,3]
[398410144,1765617106307,-500.0,0.00029589,3]
[398410145,1765617106317,-500.0,0.00029589,3]
[398410146,1765617106326,-806.44,0.00029589,3]
[398410147,1765617106336,-241.96647524,0.00029589,3]
[398410148,1765617106345,-290.87174554,0.00029589,2]
[398410159,1765617665729,3370.0,0.00014,30]
[398410171,1765618038273,-241.78447751,0.00019198,2]
[398410172,1765618038293,-194.22250936,0.00025,2]
[398410173,1765618038313,-598.94793799,0.00025,2]
[398410174,1765618044107,-220.05206201,0.00025,2]
[398410175,1765618044126,-11.16205188,0.0002706,2]
[398410176,1765618054076,-156.70061672,0.0002706,2]
[398410177,1765618054104,-227.63312515,0.00027288,2]
[398410179,1765618124699,5943.81761071,0.00014,7]
[398410180,1765618124720,10000.01,0.00014,7]
[398410181,1765618124742,1563.99623377,0.00014,7]
[398410182,1765618129188,159.22501234,0.0001097,2]
[398410185,1765618134193,157.1140738,0.0001097,2]
[398410186,1765618140785,150.0,0.00010819,2]
[398410187,1765618141179,157.95,0.00011334,2]
[398410188,1765618141723,236.93,0.00011849,2]
[398410189,1765618142589,315.9,0.00012365,2]
[398410190,1765618143008,394.88,0.0001288,2]
[398410191,1765618143397,473.86,0.00013395,2]
[398410192,1765618143791,552.83,0.0001391,2]
[398410193,1765618144694,175.64361002,0.0001097,2]
[398410194,1765618144804,426.03590299,8.873e-05,2]
[398410195,1765618145717,-300.00693292,0.00014189,2]
[398410196,1765618150066,-126.02897007,0.00014189,2]
[398410197,1765618150093,-105.25102993,0.00014425,2]
[398410198,1765618151334,215.78188162,8.873e-05,2]
[398410199,1765618152066,-166.90757918,0.00014425,2]
[398410200,1765618154189,-193.07,0.00014425,2]
[398410201,1765618156803,-166.58139089,0.00014425,2]
[398410202,1765618156829,-133.41860911,0.00014941,2]
[398410203,1765618159484,-150.0,0.00014683,2]
[398410204,1765618159508,-35.02,0.00014941,2]
[398410205,1765618164896,-210.37357918,0.00014941,2]
[398410206,1765618175198,-289.91642082,0.00014941,2]
[398410207,1765618180013,-42.05139089,0.00014941,2]
[398410208,1765618180036,-187.33742006,0.00015456,2]
[398410209,1765618184976,-220.61118905,0.00015456,2]
[398410210,1765618188454,-300.0,0.00015456,2]
[398410216,1765618211171,-81.81139089,0.00015456,2]
[398410217,1765618211194,-218.18860911,0.00015456,2]
[398410218,1765618214406,-300.0,0.00015456,2]
[398410219,1765618215158,150.0,0.00011227,2]
[398410220,1765618215553,150.0,0.00011762,2]
[398410221,1765618215954,168.65,0.00012296,2]
[398410222,1765618216386,224.87,0.00012831,2]
[398410223,1765618216788,281.09,0.00013365,2]
[398410224,1765618217203,337.31,0.000139,2]
[398410225,1765618217309,213.22584543,9.277e-05,2]
[398410226,1765618221833,-186.78206719,0.00014435,2]
[398410227,1765618223990,-206.74793281,0.00014435,2]
[398410228,1765618224015,-93.25206719,0.00014969,2]
[398410229,1765618229594,-309.22180346,0.00014969,2]
[398410251,1765618231749,-47.26612935,0.00014969,2]
[398410252,1765618231759,-124.81139089,0.00015456,2]
[398410253,1765618231767,-79.71594966,0.00015504,2]
[398410254,1765618231816,-426.24405034,0.00015504,2]
[398410255,1765618231825,-14.75594966,0.00016039,2]
[398410299,1765618233400,-271.21927174,0.00016039,2]
[398410335,1765618237778,-276.2047786,0.00016039,2]
[398410337,1765618237788,-233.38959653,0.00019505,2]
[398410339,1765618237797,-426.03590299,0.00019505,2]
[398410341,1765618237806,-215.78188162,0.00019505,2]
[398410343,1765618237815,-246.58315649,0.00019711,2]
[398410345,1765618237825,-90.56102855,0.00020855,2]
[398410348,1765618237838,-85.08258147,0.00020855,2]
[398410350,1765618237847,-426.03590299,0.00024821,2]
[398410352,1765618237856,-212.61765461,0.00027286,2]
[398410354,1765618237865,-905.73409487,0.00027297,2]
[398410356,1765618237877,-898.37213801,0.00027297,2]
[398410564,1765618240210,-3e-08,0.00020379,2]
[398410823,1765618243177,-167.68781612,0.00020379,2]
[398410825,1765618243187,-1145.31218388,0.00027297,2]
[398411140,1765618246271,-685.87214109,0.00027297,2]
[398411339,1765618248238,262.6164067,0.00011469,2]
[398411340,1765618248984,221.86426047,9.277e-05,2]
[398411345,1765618253717,284.3614739,0.00011469,2]
[398411346,1765618262387,159.31,0.0001,2]
[398411347,1765618262748,159.31,0.000113,2]
[398411348,1765618263066,159.31,0.000127,2]
[398411349,1765618266778,225.27297508,9.277e-05,2]
[398411350,1765618267187,181.4921783,0.00011469,2]
[398411351,1765618287733,150.0,9.018e-05,2]
[398411352,1765618288122,289.93,9.448e-05,2]
[398411353,1765618288512,434.89,9.877e-05,2]
[398411354,1765618288909,579.86,0.00010307,2]
[398411355,1765618289352,724.82,0.00010736,2]
[398411356,1765618289762,869.78,0.00011166,2]
[398411357,1765618290167,1014.75,0.00011595,2]
[398411358,1765618290565,1159.71,0.00012025,2]
[398411359,1765618290963,1304.67,0.00012454,2]
[398411360,1765618291357,1449.64,0.00012883,2]
[398411362,1765618364257,150.0,9.327e-05,2]
[398411363,1765618364657,150.0,9.771e-05,2]
[398411364,1765618365062,68.42270555,0.00010215,2]
[398411365,1765618365085,81.57729445,0.00010215,2]
[398411366,1765618365480,173.7,0.00010659,2]
[398411367,1765618365875,217.13,0.00011103,2]
[398411368,1765618366754,260.55,0.00011548,2]
[398411369,1765618367188,303.98,0.00011992,2]
[398411370,1765618367601,347.4,0.00012436,2]
[398411371,1765618368049,390.83,0.0001288,2]
[398411372,1765618368495,434.25,0.00013324,2]
[398411373,1765618405109,341.56853742,8.228e-05,2]
[398411374,1765618405773,341.56853742,0.0001312,2]
[398411375,1765618437383,150.0,0.00010675,2]
[398411376,1765618437781,150.0,0.00011183,2]
[398411377,1765618438460,150.0,0.00011692,2]
[398411378,1765618438871,150.0,0.000122,2]
[398411379,1765618439436,150.0,0.00012708,2]
[398411380,1765618439972,150.0,0.00013217,2]
[398411381,1765618440365,150.0,0.00013725,2]
[398411382,1765618505832,150.0,0.00010396,2]
[398411383,1765618506223,150.0,0.00010891,2]
[398411384,1765618592741,373.04161347,0.00010472,2]
[398411398,1765618644982,5384.41401724,0.00014,2]
[398411399,1765618645010,147527.78059881,0.00014,2]
[398411400,1765618652306,-9747.41888221,0.00014,2]
[398411401,1765618652396,-10000.01,0.00014,2]
[398411402,1765618652521,-10000.01,0.00014,2]
[398411403,1765618652625,-10000.01,0.00014,2]
[398411404,1765618652735,-10000.01,0.00014,2]
[398411405,1765618654893,-10000.01,0.00014,2]
[398411406,1765618690467,-166.39,8.8e-05,2]
[398411407,1765618690489,-231.909277,8.873e-05,2]
[398411408,1765618690512,-166.39,8.9e-05,2]
[398411409,1765618690534,-166.39,9e-05,2]
[398411410,1765618690560,-166.39,9.1e-05,2]
[398411411,1765618690583,-10.98714046,9.2e-05,2]
[398411412,1765618693184,-247.47426697,8.873e-05,2]
[398411413,1765618693206,-52.52573303,9.2e-05,2]
[398411414,1765618694734,-102.87712651,9.2e-05,2]
[398411415,1765618694756,-166.39,9.3e-05,2]
[398411416,1765618694777,-33.15545343,9.4e-05,2]
[398411417,1765618697300,-133.23454657,9.4e-05,2]
[398411418,1765618697327,-166.39,9.5e-05,2]
[398411419,1765618697350,-0.37545343,9.6e-05,2]
[398411420,1765618699392,-187.33742006,8.754e-05,2]
[398411421,1765618701183,-86.95257994,8.754e-05,2]
[398411422,1765618701204,-131.23602917,8.873e-05,2]
[398411423,1765618704448,-53.77004522,8.873e-05,2]
[398411424,1765618704473,-255.45175824,9.171e-05,2]
[398411425,1765618710216,-226.6706763,9.171e-05,2]
[398411426,1765618713017,-66.44756546,9.171e-05,2]
[398411427,1765618713041,-220.99740461,9.588e-05,2]
[398411428,1765618716126,-289.91642082,9.588e-05,2]
[398411429,1765618717873,-311.94617457,9.588e-05,2]
[398411430,1765618717896,-24.83589262,9.6e-05,2]
[398411431,1765618721790,-141.17865395,9.6e-05,2]
[398411432,1765618721813,-65.56927886,9.777e-05,2]
[398411433,1765618723992,-109.89357911,9.777e-05,2]
[398411434,1765618724014,-166.39,9.8e-05,2]
[398411435,1765618724036,-22.03745082,9.9e-05,2]
[398411436,1765618728043,-144.35254918,9.9e-05,2]
[398411437,1765618728065,-22.55503,0.0001,2]
[398411438,1765618729618,-143.83497,0.0001,2]
[398411439,1765618729643,-22.74642089,0.00010005,2]
[398411440,1765618733733,-426.03590299,0.00010005,2]
[398411441,1765618765471,-219.06,8.8e-05,2]
[398411442,1765618765497,-54.74599502,8.9e-05,2]
[398411443,1765618767613,-164.31400498,8.9e-05,2]
[398411444,1765618767637,-16.97720382,9e-05,2]
[398411447,1765618772048,-202.08279618,9e-05,2]
[398411448,1765618772071,-213.32703348,9.1e-05,2]
[398411449,1765618774183,-5.73296652,9.1e-05,2]
[398411450,1765618774205,-219.06,9.2e-05,2]
[398411451,1765618774227,-169.7022264,9.277e-05,2]
[398411452,1765618775819,-150.0,9.05e-05,2]
[398411453,1765618775842,-15.57254056,9.277e-05,2]
[398411454,1765618779745,-27.53335998,9.277e-05,2]
[398411455,1765618779768,-180.78365737,9.3e-05,2]
[398411456,1765618787817,308.55,7.03e-05,2]
[398411457,1765618788205,617.1,7.365e-05,2]
[398411458,1765618788595,925.65,7.699e-05,2]
[398411459,1765618788987,1234.21,8.034e-05,2]
[398411460,1765618789399,1542.76,8.369e-05,2]
[398411461,1765618795470,-323.87793593,8.704e-05,2]
[398411462,1765618797034,-158.74908175,8.704e-05,2]
[398411463,1765618800051,-239.5337924,8.704e-05,2]
[398411464,1765618802707,-264.06560807,8.704e-05,2]
[398411465,1765618804637,-237.62933608,8.704e-05,2]
[398411467,1765618806616,-237.74809137,8.704e-05,2]
[398411469,1765618808907,-300.0,8.704e-05,2]
[398411472,1765618812762,-89.7061544,8.704e-05,2]
[398411473,1765618812785,-86.53485674,8.704e-05,2]
[398411475,1765618814410,-302.49508575,8.704e-05,2]
[398411476,1765618816225,-152.97005751,8.704e-05,2]
[398411477,1765618816249,-175.79042148,9.038e-05,2]
[398411478,1765618820580,-193.54,8.8e-05,2]
[398411479,1765618820603,-9.87997155,8.9e-05,2]
[398411480,1765618822073,-183.66002845,8.9e-05,2]
[398411481,1765618822096,-57.57087286,9e-05,2]
[398411482,1765618824760,-135.96912714,9e-05,2]
[398411483,1765618824785,-384.48354043,9.038e-05,2]
[398411485,1765618828741,-166.08643853,9.038e-05,2]
[398411486,1765618830782,-242.93571075,9.038e-05,2]
[398411488,1765618833706,-374.83702641,9.038e-05,2]
[398411490,1765618838631,-159.94951747,9.038e-05,2]
[398411493,1765618842164,-339.4461304,9.038e-05,2]
[398411494,1765618843939,-164.41305689,9.038e-05,2]